Workbook

Sheet обложка
B1: Приложение № 1 к Порядку
C4: УТВЕРЖДАЮ
B6: Заведующий
B7: _____________Т.П.Лазарева
C10: «30» декабря 2016г.
A12: План финансово-хозяйственной деятельности №1
A13: на 2017 год
A15: Форма по КФД
A16: Дата | B16: 30.12.2016 г.
A19: Код по ОКПО | B19: 6049311
A22: ИНН | B22: 6114008484
A23: КПП | B23: 611401001
A24: Код по ОКЕИ
A27: Наименование муниципального бюджетного учреждения
A28: муниципальное бюджетное дошкольное образовательное учреждение детский сад №11 "Звездочка" Каменского района Ростовской области
A33: Единица измерения: руб. (с точностью до второго десятичного знака после запятой)
A35: Наименование органа, осуществляющего
A36: функции и полномочия учредителя
A38: отдел образования Администрации Каменского района
A40: Адрес фактического местонахождения
A41: муниципального бюджетного учреждения
A42: 347852, Россия, Ростовская область, Каменский район, п. Молодежный, ул. Достоевского, 14

Sheet 1
A2: 1. Сведения о деятельности муниципального бюджетного учреждения
A6: 1.1. Цели деятельности муниципального бюджетного учреждения в соответствии с областными законами, иными нормативными актами и уставом учреждения:
A7: оказание муниципальных услуг в целях обеспечения реализации полномочий органов местного самоуправления Каменского района, предусмотренных п.11 ч.1 ст.15 ФЗ от 06.10.2003. №131-ФЗ "Об общих принципах организации местного самоуправления в РФ", ч.1 ст.9 Закона РФ от 29.12.2012 №273-ФЗ "Об образовании в РФ" в сфере общедоступного бесплатного дошкольного образования
A9: 1.2. Виды деятельности муниципального бюджетного учреждения, относящиеся к его основным видам деятельности в соответствии с уставом учреждения:
A10: 1.Организация предоставления общедоступного бесплатного дошкольного образования 2. Образовательная деятельность по образовательным программам дошкольного образования осуществляестя в группах. Группы могут иметь общеразвивающую компенсирующую, оздоровительную или комбинированную направленность. 3. В МБДОУ детский сад №11 "Звездочка" могут быть организованы группы по присмотру и уходу без реализации образовательной программы дошкольного образования в возрасте от 2 месяцев до 7 лет.
A12: 1.3. Перечень услуг (работ), относящихся в соответствии с уставом к основным видам деятельности учреждения, предоставление которых для физических и юридических лиц осуществляется за плату:
A13: 1.Организация предоставления общедоступного бесплатного дошкольного образования 2. Образовательная деятельность по образовательным программам дошкольного образования осуществляестя в группах. Группы могут иметь общеразвивающую компенсирующую, оздоровительную или комбинированную направленность. 3. В МБДОУ детский сад №11 "Звездочка" могут быть организованы группы по присмотру и уходу без реализации образовательной программы дошкольного образования в возрасте от 2 месяцев до 7 лет.

Sheet 2
A1: 2. Показатели финансового состояния учреждения на 01.01.2017 г.
D3: (последнюю отчетную дату)
B5: N п/п | C5: Наименование показателя | D5: Сумма, руб.
B6: 1 | C6: 2 | D6: 3
B7: 1 | C7: Нефинансовые активы, всего: | D7: =D8+D12 -> 3,581,906.34
B8: 1.1 | C8: из них: | D8: 2,147,435.93
C9: недвижимое имущество, всего:
B10: 1.1.1 | C10: в том числе:
C11: остаточная стоимость
B12: 1.2. | C12: особо ценное движимое имущество, всего: | D12: 1,434,470.41
B13: 1.2.1 | C13: в том числе: | D13: 20,847.37
C14: остаточная стоимость
B15: 2 | C15: Финансовые активы, всего: | D15: =D16+D22+D23+D24 -> 0
B16: 2.1 | C16: из них:
C17: денежные средства учреждения, всего
B18: 2.1.1 | C18: в том числе:
C19: денежные средства учреждения на счетах
B21: 2.1.2 | C21: денежные средства учреждения, размещенные на депозиты в кредитной организации
B22: 2.2 | C22: иные финансовые инструменты
B23: 2.3 | C23: дебиторская задолженность по доходам
B24: 2.4 | C24: дебиторская задолженность по расходам
B25: 3 | C25: Обязательства, всего: | D25: =D26+D28 -> 84,257.96
B26: 3.1 | C26: из них:
C27: долговые обязательства
B28: 3.2 | C28: кредиторская задолженность: | D28: 84,257.96
B29: 3.2.1 | C29: в том числе:
C30: просроченная кредиторская задолженность

Sheet 3
A2: 3. Показатели по поступлениям и выплатам учреждения на 01 января2017 г.
A4: Наименование показателя | B4: Код строки | C4: Код по бюджетной классификации Российской Федерации | D4: Объем финансового обеспечения, руб. (с точностью до двух знаков после запятой - 0,00)
D5: всего | E5: в том числе:
E6: субсидия на финансовое обеспечение выполнения государственного (муниципального) задания | F6: субсидии, предоставляемые в соответствии с абзацем вторым пункта 1 статьи 78.1 Бюджетного кодекса Российской Федерации | G6: субсидии на осуществление капитальных вложений | H6: средства обязательного медицинского страхования | I6: поступления от оказания услуг (выполнения работ) на платной основе и от иной приносящей доход деятельности
I7: всего | J7: из них гранты
A8: 1 | B8: 2 | C8: 3 | D8: 4 | E8: 5 | F8: 6 | G8: 7 | H8: 8 | I8: 9 | J8: 10
A9: Поступления от доходов, всего: | B9: 100 | C9: X | D9: =E9+F9+G9+H9+I9 -> 6,170,900.00 | E9: =E13 -> 4,063,400.00 | F9: =F21 -> 1,521,400.00 | H9: =H13 -> 0 | I9: =I10+I13+I15+I16+I19 -> 586,100.00
A10: в том числе: | B10: 110 | D10: =I10 -> 0 | E10: X | F10: X | G10: X | H10: X | J10: X
A11: доходы от собственности
A13: доходы от оказания услуг, работ | B13: 120 | D13: =E13+H13+I13 -> 4,649,500.00 | E13: =E21 -> 4,063,400.00 | F13: X | G13: X | I13: =I21 -> 586,100.00
A15: доходы от штрафов, пеней, иных сумм принудительного изъятия | B15: 130 | D15: =I15 -> 0 | E15: X | F15: X | G15: X | H15: X | J15: X
A16: безвозмездные поступления от наднациональных организаций, правительств иностранных государств, международных финансовых организаций | B16: 140 | D16: =I16 -> 0 | E16: X | F16: X | G16: X | H16: X | J16: X
A17: иные субсидии, предоставленные из бюджета | B17: 150 | D17: =F17+G17 -> 1,521,400.00 | E17: X | F17: =F21 -> 1,521,400.00 | H17: X | I17: X | J17: X
A18: прочие доходы | B18: 160 | D18: =I18 -> 0 | E18: X | F18: X | G18: X | H18: X
A19: доходы от операций с активами | B19: 180 | C19: X | D19: =I19 -> 0 | E19: X | F19: X | G19: X | H19: X | J19: X
A21: Выплаты по расходам, всего: | B21: 200 | C21: X | D21: =E21+F21+G21+H21+I21 -> 6,170,900.00 | E21: =E22+E28+E30+E32+E36+E37 -> 4,063,400.00 | F21: =F22+F28+F30+F32+F36+F37 -> 1,521,400.00 | G21: 0 | H21: 0 | I21: 586,100.00
A22: в том числе на: выплаты персоналу всего: | B22: 210 | D22: =SUM(E22:I22) -> 2,338,200.00 | E22: =E25+E26+E27 -> 2,338,200.00
A23: из них: | B23: 211 | C23: 211.213 | D23: =SUM(E23:I24) -> 2,335,100.00 | E23: =E25+E27 -> 2,335,100.00 | F23: =F25+F27 -> 0 | G23: 0 | H23: 0 | I23: 0 | J23: 0
A24: оплата труда и начисления на выплаты по оплате труда
A25: заработная плата | B25: 212 | C25: 211 | D25: =SUM(E25:I25) -> 1,793,500.00 | E25: 1,793,500.00
A26: прочие выплаты | B26: 213 | C26: 212 | D26: 3,100.00 | E26: 3,100.00
A27: начисления на выплаты по оплате труда | B27: 214 | C27: 213 | D27: 541,600.00 | E27: 541,600.00
A28: социальные и иные выплаты населению, всего | B28: 220 | D28: =SUM(E28:I28) -> 0
A29: из них:
A30: уплату налогов, сборов и иных платежей, всего | B30: 230 | D30: =SUM(E30:I30) -> 0
A31: из них:
A32: безвозмездные | B32: 240 | D32: =SUM(E32:I34) -> 0
A33: перечисления
A34: организациям
A36: прочие расходы (кроме расходов на закупку товаров, работ, услуг) | B36: 250 | D36: =SUM(E36:I36) -> 0
A37: расходы на закупку товаров, работ, услуг, всего | B37: 260 | C37: X | D37: =SUM(E37:I37) -> 3,832,700.00 | E37: =E38+E39+E40+E41+E42+E43+E44+E45+E46 -> 1,725,200.00 | F37: =F38+F39+F40+F41+F42+F43+F44+F45+F46 -> 1,521,400.00 | G37: 0 | H37: 0 | I37: 586,100.00 | J37: 0
A38: услуги связи | B38: 261 | C38: 221 | D38: =SUM(E38:I38) -> 39,100.00 | E38: 39,000.00 | F38: 100.00
A39: транспортные услуги | B39: 262 | C39: 222 | D39: 0
A40: коммунальные услуги | B40: 263 | C40: 223 | D40: 691,000.00 | E40: 691,000.00
A41: арендная плата за пользование имуществом | B41: 264 | C41: 224 | D41: 0
A42: работы, услуги по содержанию имущества | B42: 265 | C42: 225 | D42: 336,600.00 | E42: 333,600.00 | F42: 3,000.00
A43: прочие работы, услуги | B43: 266 | C43: 226 | D43: 2,622,400.00 | E43: 518,000.00 | F43: 1,518,300.00 | I43: 586,100.00
A44: прочие расходы | B44: 267 | C44: 290 | D44: 9,100.00 | E44: 9,100.00
A45: увеличение стоимости основных средств | B45: 268 | C45: 310 | D45: 30,000.00 | E45: 30,000.00
A46: увеличение стоимости материальных запасов | B46: 269 | C46: 340 | D46: 104,500.00 | E46: 104,500.00
A47: Поступление финансовых активов, всего: | B47: 300 | C47: X | D47: =SUM(E47:I47) -> 0 | E47: =E48+E50 -> 0 | F47: =F48+F50 -> 0 | G47: 0 | H47: 0 | I47: 0
A48: из них: | B48: 310 | D48: =SUM(E48:I49) -> 0
A49: увеличение остатков средств
A50: прочие поступления | B50: 320 | D50: =SUM(E50:I50) -> 0
A51: Выбытие финансовых активов, всего | B51: 400 | D51: =SUM(E51:I51) -> 0 | E51: =E52+E54 -> 0 | F51: =F52+F54 -> 0 | G51: 0 | H51: 0 | I51: 0
A52: Из них: | B52: 410 | D52: =SUM(E52:I53) -> 0
A53: уменьшение остатков средств
A54: прочие выбытия | B54: 420 | D54: =SUM(E54:I54) -> 0
A55: Остаток средств на начало года | B55: 500 | C55: X | D55: =SUM(E55:I55) -> 0
A56: Остаток средств на конец года | B56: 600 | C56: X | D56: =SUM(E56:I56) -> 0

Sheet 3.1
A1: 3.1. Показатели выплат по расходам на закупку товаров, работ, услуг учреждения на 01 января2017 г.
A3: Наименование показателя | B3: Код строки | C3: Год начала закупки | D3: Сумма выплат по расходам на закупку товаров, работ и услуг, руб. (с точностью до двух знаков после запятой - 0,00
D4: всего на закупки | G4: в том числе:
G5: в соответствии с Федеральным законом от 5 апреля 2013 г. N 44-ФЗ "О контрактной системе в сфере закупок товаров, работ, услуг для обеспечения государственных и муниципальных нужд" | J5: в соответствии с Федеральным законом от 18 июля 2011 г. N 223-ФЗ "О закупках товаров, работ, услуг отдельными видами юридических лиц"
D6: на 2017 г. очередной финансовый год | E6: на 20__ г. 1-ый год планового периода | F6: на 20__ г. 2-ой год планового периода | G6: на 2017г. очередной финансовый год | H6: на 20__ г. 1-ый год планового периода | I6: на 20__ г. 2-ой год планового периода | J6: на 20__ г. очередной финансовый год | K6: на 20__ г. 1-ый год планового периода | L6: на 20__ г. 1-ый год планового периода
A7: 1 | B7: 2 | C7: 3 | D7: 4 | E7: 5 | F7: 6 | G7: 7 | H7: 8 | I7: 9 | J7: 10 | K7: 11 | L7: 12
A8: Выплаты по расходам на закупку товаров, работ, услуг всего: | B8: 1 | C8: X | D8: =G8 -> 3,751,800.00 | G8: =G11 -> 3,751,800.00
A9: в том числе: на оплату контрактов заключенных до начала очередного финансового года: | B9: 1001 | C9: X
A11: на закупку товаров, работ, услуг по году начала закупки: | B11: 2001 | D11: =G11 -> 3,751,800.00 | G11: 3,751,800.00

Sheet 4
B2: Сведения о средствах, поступающих
B3: во временное распоряжение учреждения (подразделения)
B4: на 01 января2017 г.
B5: (очередной финансовый год)
B7: Наименование показателя | C7: Код строки | D7: Сумма (руб., с точностью до двух знаков после запятой - 0,00)
B8: 1 | C8: 2 | D8: 3
B9: Остаток средств на начало года | C9: 10 | D9: 78298.16
B10: Остаток средств на конец года | C10: 20
B11: Поступление | C11: 30
B13: Выбытие | C13: 40

Sheet 5
B3: Справочная информация
B5: Наименование показателя | C5: Код строки | D5: Сумма (руб.)
B6: 1 | C6: 2 | D6: 3
B7: Объем публичных обязательств, всего: | C7: 10
B8: Объем бюджетных инвестиций (в части переданных полномочий государственного (муниципального) заказчика в соответствии с Бюджетным кодексом Российской Федерации), всего: | C8: 20 | D8: 30,000.00
B9: Объем средств, поступивших во временное распоряжение, всего: | C9: 30
